[Event "Titled Tuesday Blitz January 04 2022"]
[White "Koellner, Ruben Gideon"]
[Black "Tsydypov, Zhamsaran"]
[WhiteFideId "12993093"]
[BlackFideId "4108566"]
[WhiteElo "2603"]
[BlackElo "2614"]
[Result "0-1"]
[Round "02"]
[TimeControl "180+1"]
[Date "2022.01.04"]
[WhiteClock "0:00:08"]
[BlackClock "0:01:18"]

1. d4 {[%clk 0:03:00]}  Nf6 {[%clk 0:02:59]} 2. Bg5 {[%clk 0:03:00]}  Ne4 {[%clk 0:02:58]} 3. Bf4 {[%clk 0:03:00]}  c5 {[%clk 0:02:59]} 4. f3 {[%clk 0:03:00]}  Nf6 {[%clk 0:02:58]} 5. dxc5 {[%clk 0:03:00]}  Qa5+ {[%clk 0:02:53]} 6. Nc3 {[%clk 0:03:00]}  Qxc5 {[%clk 0:02:53]} 7. e4 {[%clk 0:03:00]}  d6 {[%clk 0:02:53]} 8. Qd2 {[%clk 0:03:00]}  g6 {[%clk 0:02:50]} 9. O-O-O {[%clk 0:03:00]}  Bg7 {[%clk 0:02:49]} 10. e5 {[%clk 0:02:36]}  Nh5 {[%clk 0:02:44]} 11. Be3 {[%clk 0:02:32]}  Qxe5 {[%clk 0:02:41]} 12. g4 {[%clk 0:01:41]}  Nf6 {[%clk 0:02:41]} 13. Bb5+ {[%clk 0:00:56]}  Nc6 {[%clk 0:02:30]} 14. Bd4 {[%clk 0:00:57]}  Qe6 {[%clk 0:02:27]} 15. Nh3 {[%clk 0:00:55]}  O-O {[%clk 0:02:26]} 16. Ng5 {[%clk 0:00:46]}  Qd7 {[%clk 0:02:25]} 17. h4 {[%clk 0:00:44]}  a6 {[%clk 0:02:19]} 18. Bxc6 {[%clk 0:00:40]}  bxc6 {[%clk 0:02:13]} 19. h5 {[%clk 0:00:40]}  e5 {[%clk 0:02:10]} 20. Be3 {[%clk 0:00:39]}  d5 {[%clk 0:02:07]} 21. hxg6 {[%clk 0:00:34]}  fxg6 {[%clk 0:02:06]} 22. Qh2 {[%clk 0:00:33]}  h6 {[%clk 0:02:05]} 23. Nge4 {[%clk 0:00:27]}  Nxe4 {[%clk 0:02:03]} 24. fxe4 {[%clk 0:00:25]}  d4 {[%clk 0:02:00]} 25. Bxh6 {[%clk 0:00:25]}  Bxh6+ {[%clk 0:02:00]} 26. Qxh6 {[%clk 0:00:25]}  Qg7 {[%clk 0:02:00]} 27. Na4 {[%clk 0:00:23]}  Qxh6+ {[%clk 0:01:54]} 28. Rxh6 {[%clk 0:00:24]}  Kg7 {[%clk 0:01:55]} 29. Rdh1 {[%clk 0:00:23]}  Bxg4 {[%clk 0:01:54]} 30. Rh7+ {[%clk 0:00:24]}  Kf6 {[%clk 0:01:53]} 31. Nc5 {[%clk 0:00:23]}  Kg5 {[%clk 0:01:47]} 32. Rg1 {[%clk 0:00:21]}  Rae8 {[%clk 0:01:41]} 33. a4 {[%clk 0:00:15]}  Rf4 {[%clk 0:01:36]} 34. b3 {[%clk 0:00:13]}  a5 {[%clk 0:01:32]} 35. Ra7 {[%clk 0:00:12]}  Kh6 {[%clk 0:01:29]} 36. Rxa5 {[%clk 0:00:12]}  Bf3 {[%clk 0:01:29]} 37. Re1 {[%clk 0:00:11]}  g5 {[%clk 0:01:29]} 38. Nd3 {[%clk 0:00:09]}  Rxe4 {[%clk 0:01:28]} 39. Rxe4 {[%clk 0:00:09]}  Bxe4 {[%clk 0:01:29]} 40. Rxe5 {[%clk 0:00:10]}  Rxe5 {[%clk 0:01:27]} 41. Nxe5 {[%clk 0:00:11]}  Kh5 {[%clk 0:01:26]} 42. Kd2 {[%clk 0:00:09]}  g4 {[%clk 0:01:26]} 43. Nxg4 {[%clk 0:00:09]}  Kxg4 {[%clk 0:01:26]} 44. c3 {[%clk 0:00:10]}  c5 {[%clk 0:01:22]} 45. b4 {[%clk 0:00:08]}  cxb4 {[%clk 0:01:18]} 0-1


[Site "https://www.chess.com"]

[Event "Titled Tuesday Blitz January 04 2022"]
[White "Maghsoodloo, Parham"]
[Black "Sargsyan, Anna M."]
[WhiteFideId "12539929"]
[BlackFideId "13308130"]
[WhiteElo "2630"]
[BlackElo "2271"]
[Result "1-0"]
[Round "02"]
[TimeControl "180+1"]
[Date "2022.01.04"]
[WhiteClock "0:00:57"]
[BlackClock "0:00:02"]

1. e4 {[%clk 0:03:00]}  e5 {[%clk 0:02:58]} 2. Nf3 {[%clk 0:03:00]}  Nc6 {[%clk 0:02:59]} 3. Bb5 {[%clk 0:03:00]}  a6 {[%clk 0:03:00]} 4. Ba4 {[%clk 0:03:01]}  Nf6 {[%clk 0:03:00]} 5. O-O {[%clk 0:03:01]}  Nxe4 {[%clk 0:02:57]} 6. d4 {[%clk 0:02:59]}  b5 {[%clk 0:02:57]} 7. Bb3 {[%clk 0:03:00]}  d5 {[%clk 0:02:57]} 8. dxe5 {[%clk 0:03:00]}  Be6 {[%clk 0:02:55]} 9. Nbd2 {[%clk 0:02:52]}  Be7 {[%clk 0:02:45]} 10. c3 {[%clk 0:02:43]}  O-O {[%clk 0:02:43]} 11. Bc2 {[%clk 0:02:42]}  f5 {[%clk 0:02:43]} 12. Nb3 {[%clk 0:02:38]}  Qd7 {[%clk 0:02:41]} 13. Re1 {[%clk 0:02:35]}  b4 {[%clk 0:02:21]} 14. Nfd4 {[%clk 0:02:20]}  bxc3 {[%clk 0:02:07]} 15. f3 {[%clk 0:02:16]}  Nxd4 {[%clk 0:01:47]} 16. Nxd4 {[%clk 0:02:12]}  cxb2 {[%clk 0:01:42]} 17. Bxb2 {[%clk 0:02:12]}  Nc5 {[%clk 0:01:30]} 18. Ba3 {[%clk 0:02:11]}  c6 {[%clk 0:01:18]} 19. Rc1 {[%clk 0:02:10]}  Qa7 {[%clk 0:00:30]} 20. Nxc6 {[%clk 0:02:04]}  Qd7 {[%clk 0:00:21]} 21. Nxe7+ {[%clk 0:02:04]}  Qxe7 {[%clk 0:00:22]} 22. Qd4 {[%clk 0:02:03]}  Rfc8 {[%clk 0:00:18]} 23. Bb1 {[%clk 0:01:46]}  Nb3 {[%clk 0:00:14]} 24. Qb2 {[%clk 0:01:46]}  Qa7+ {[%clk 0:00:08]} 25. Qf2 {[%clk 0:01:46]}  Qxf2+ {[%clk 0:00:07]} 26. Kxf2 {[%clk 0:01:47]}  Nxc1 {[%clk 0:00:08]} 27. Bxc1 {[%clk 0:01:47]}  Kf7 {[%clk 0:00:07]} 28. Bd3 {[%clk 0:01:41]}  a5 {[%clk 0:00:07]} 29. a4 {[%clk 0:01:35]}  Rab8 {[%clk 0:00:07]} 30. Bb5 {[%clk 0:01:35]}  d4 {[%clk 0:00:06]} 31. Kg3 {[%clk 0:01:27]}  Rc2 {[%clk 0:00:06]} 32. h4 {[%clk 0:01:19]}  h6 {[%clk 0:00:05]} 33. Bf4 {[%clk 0:01:17]}  Rb6 {[%clk 0:00:05]} 34. Rd1 {[%clk 0:01:17]}  Bc4 {[%clk 0:00:04]} 35. Bd7 {[%clk 0:01:17]}  Be6 {[%clk 0:00:04]} 36. Rxd4 {[%clk 0:01:12]}  Bxd7 {[%clk 0:00:03]} 37. Rxd7+ {[%clk 0:01:13]}  Kg8 {[%clk 0:00:04]} 38. Be3 {[%clk 0:01:07]}  Rbb2 {[%clk 0:00:03]} 39. e6 {[%clk 0:01:06]}  Rxg2+ {[%clk 0:00:04]} 40. Kf4 {[%clk 0:01:07]}  Rb4+ {[%clk 0:00:04]} 41. Kxf5 {[%clk 0:01:02]}  Re2 {[%clk 0:00:04]} 42. Bd4 {[%clk 0:01:02]}  Kf8 {[%clk 0:00:02]} 43. Bc5+ {[%clk 0:01:02]}  Ke8 {[%clk 0:00:03]} 44. Rxg7 {[%clk 0:00:57]}  Rc4 {[%clk 0:00:02]} 45. Rg8# {[%clk 0:00:57]} 1-0


[Site "https://www.chess.com"]

[Event "Titled Tuesday Blitz January 04 2022"]
[White "Nepomniachtchi, Ian"]
[Black "Mitusov, Semen"]
[WhiteFideId "4168119"]
[BlackFideId "14151049"]
[WhiteElo "2740"]
[BlackElo "2246"]
[Result "1-0"]
[Round "02"]
[TimeControl "180+1"]
[Date "2022.01.04"]
[WhiteClock "0:00:39"]
[BlackClock "0:00:04"]

1. e4 {[%clk 0:03:00]}  e5 {[%clk 0:02:59]} 2. f4 {[%clk 0:03:00]}  d5 {[%clk 0:02:59]} 3. exd5 {[%clk 0:03:00]}  exf4 {[%clk 0:02:59]} 4. Nf3 {[%clk 0:03:01]}  Nf6 {[%clk 0:03:00]} 5. Bb5+ {[%clk 0:03:01]}  c6 {[%clk 0:02:59]} 6. dxc6 {[%clk 0:03:02]}  Nxc6 {[%clk 0:02:57]} 7. Nc3 {[%clk 0:03:02]}  Bd6 {[%clk 0:02:53]} 8. Qe2+ {[%clk 0:03:02]}  Be6 {[%clk 0:02:50]} 9. Nd4 {[%clk 0:03:01]}  Qd7 {[%clk 0:02:46]} 10. Nxe6 {[%clk 0:02:59]}  fxe6 {[%clk 0:02:45]} 11. d4 {[%clk 0:02:58]}  O-O {[%clk 0:02:44]} 12. Bd2 {[%clk 0:02:55]}  Rae8 {[%clk 0:02:37]} 13. O-O-O {[%clk 0:02:52]}  a6 {[%clk 0:02:29]} 14. Bxc6 {[%clk 0:02:52]}  Qxc6 {[%clk 0:02:29]} 15. Rhe1 {[%clk 0:02:52]}  Nd5 {[%clk 0:02:26]} 16. Ne4 {[%clk 0:02:50]}  Bb8 {[%clk 0:02:19]} 17. Kb1 {[%clk 0:02:50]}  e5 {[%clk 0:02:18]} 18. c4 {[%clk 0:02:49]}  Nb6 {[%clk 0:02:15]} 19. Bb4 {[%clk 0:02:42]}  Rf7 {[%clk 0:02:09]} 20. Bc5 {[%clk 0:02:41]}  Nd7 {[%clk 0:01:48]} 21. d5 {[%clk 0:02:41]}  Qg6 {[%clk 0:01:47]} 22. Ka1 {[%clk 0:02:37]}  Rc8 {[%clk 0:01:39]} 23. Ba3 {[%clk 0:02:31]}  h6 {[%clk 0:01:32]} 24. c5 {[%clk 0:02:31]}  Kh7 {[%clk 0:01:29]} 25. Qd3 {[%clk 0:02:26]}  Kh8 {[%clk 0:01:25]} 26. Re2 {[%clk 0:02:24]}  Qh5 {[%clk 0:01:22]} 27. Rc2 {[%clk 0:02:17]}  Nf6 {[%clk 0:01:12]} 28. Nxf6 {[%clk 0:02:11]}  Rxf6 {[%clk 0:01:12]} 29. Qe2 {[%clk 0:01:57]}  Qf5 {[%clk 0:01:07]} 30. d6 {[%clk 0:01:44]}  e4 {[%clk 0:01:03]} 31. c6 {[%clk 0:01:40]}  bxc6 {[%clk 0:00:58]} 32. Qxa6 {[%clk 0:01:40]}  Rd8 {[%clk 0:00:56]} 33. Rxc6 {[%clk 0:01:36]}  e3 {[%clk 0:00:55]} 34. Qb6 {[%clk 0:01:35]}  Rff8 {[%clk 0:00:44]} 35. Bb4 {[%clk 0:01:31]}  Qe4 {[%clk 0:00:40]} 36. Rg1 {[%clk 0:01:11]}  e2 {[%clk 0:00:34]} 37. a3 {[%clk 0:01:11]}  Ba7 {[%clk 0:00:30]} 38. Qxa7 {[%clk 0:01:11]}  Qxc6 {[%clk 0:00:30]} 39. Qf2 {[%clk 0:01:09]}  Qe4 {[%clk 0:00:29]} 40. Re1 {[%clk 0:01:09]}  Rfe8 {[%clk 0:00:29]} 41. h4 {[%clk 0:01:02]}  Re6 {[%clk 0:00:23]} 42. Qb6 {[%clk 0:00:58]}  Rd7 {[%clk 0:00:20]} 43. Qb5 {[%clk 0:00:57]}  Rd8 {[%clk 0:00:19]} 44. Qb6 {[%clk 0:00:53]}  Rd7 {[%clk 0:00:19]} 45. Qb8+ {[%clk 0:00:44]}  Re8 {[%clk 0:00:19]} 46. Qb5 {[%clk 0:00:45]}  Rdd8 {[%clk 0:00:18]} 47. d7 {[%clk 0:00:44]}  Re6 {[%clk 0:00:12]} 48. Ba5 {[%clk 0:00:43]}  Qc2 {[%clk 0:00:12]} 49. Qd5 {[%clk 0:00:40]}  Re5 {[%clk 0:00:08]} 50. Qxe5 {[%clk 0:00:38]}  Qd1+ {[%clk 0:00:08]} 51. Ka2 {[%clk 0:00:38]}  Rxd7 {[%clk 0:00:06]} 52. Qe8+ {[%clk 0:00:38]}  Kh7 {[%clk 0:00:06]} 53. Qe4+ {[%clk 0:00:39]}  g6 {[%clk 0:00:05]} 54. Rxe2 {[%clk 0:00:40]}  Qd6 {[%clk 0:00:04]} 55. Bc3 {[%clk 0:00:39]} 1-0


[Site "https://www.chess.com"]

[Event "Titled Tuesday Blitz January 04 2022"]
[White "Nesterov, Arseniy"]
[Black "Fedotov, Nikita"]
[WhiteFideId "24198455"]
[BlackFideId "24161446"]
[WhiteElo "2489"]
[BlackElo "2102"]
[Result "0-1"]
[Round "02"]
[TimeControl "180+1"]
[Date "2022.01.04"]
[WhiteClock "0:00:07"]
[BlackClock "0:00:32"]

1. d4 {[%clk 0:03:00]}  Nf6 {[%clk 0:02:57]} 2. c4 {[%clk 0:03:01]}  c5 {[%clk 0:02:56]} 3. d5 {[%clk 0:03:01]}  b5 {[%clk 0:02:57]} 4. Qc2 {[%clk 0:02:58]}  d6 {[%clk 0:02:56]} 5. e4 {[%clk 0:02:57]}  g6 {[%clk 0:02:56]} 6. cxb5 {[%clk 0:02:56]}  a6 {[%clk 0:02:56]} 7. Bd2 {[%clk 0:02:50]}  Bg7 {[%clk 0:02:55]} 8. Bc3 {[%clk 0:02:50]}  O-O {[%clk 0:02:53]} 9. Nf3 {[%clk 0:02:42]}  Bb7 {[%clk 0:02:52]} 10. Nbd2 {[%clk 0:02:35]}  e6 {[%clk 0:02:51]} 11. dxe6 {[%clk 0:02:35]}  fxe6 {[%clk 0:02:51]} 12. e5 {[%clk 0:02:17]}  Nd5 {[%clk 0:02:50]} 13. exd6 {[%clk 0:02:14]}  Nxc3 {[%clk 0:02:46]} 14. bxc3 {[%clk 0:02:15]}  Qxd6 {[%clk 0:02:21]} 15. Be2 {[%clk 0:02:04]}  axb5 {[%clk 0:02:21]} 16. Bxb5 {[%clk 0:02:04]}  Ba6 {[%clk 0:02:19]} 17. Rb1 {[%clk 0:01:39]}  Bxb5 {[%clk 0:02:09]} 18. Rxb5 {[%clk 0:01:40]}  Qa6 {[%clk 0:02:09]} 19. c4 {[%clk 0:01:12]}  Nc6 {[%clk 0:01:50]} 20. O-O {[%clk 0:01:05]}  Nd4 {[%clk 0:01:50]} 21. Nxd4 {[%clk 0:01:03]}  Bxd4 {[%clk 0:01:51]} 22. Nf3 {[%clk 0:00:47]}  Qxa2 {[%clk 0:01:42]} 23. Nxd4 {[%clk 0:00:34]}  cxd4 {[%clk 0:01:43]} 24. Rb2 {[%clk 0:00:31]}  Qa5 {[%clk 0:01:30]} 25. Qe4 {[%clk 0:00:25]}  e5 {[%clk 0:00:35]} 26. Rb5 {[%clk 0:00:25]}  Qd2 {[%clk 0:00:35]} 27. Qd5+ {[%clk 0:00:22]}  Kg7 {[%clk 0:00:32]} 28. Rb7+ {[%clk 0:00:15]}  Kh6 {[%clk 0:00:32]} 29. Qxe5 {[%clk 0:00:09]}  Qxf2+ {[%clk 0:00:32]} 30. Rxf2 {[%clk 0:00:07]}  Ra1+ {[%clk 0:00:32]} 0-1


[Site "https://www.chess.com"]

[Event "Titled Tuesday Blitz January 04 2022"]
[White "Pichot, Alan"]
[Black "Agasarov, Benik"]
[WhiteFideId "110973"]
[BlackFideId "13314823"]
[WhiteElo "2543"]
[BlackElo "2605"]
[Result "1/2-1/2"]
[Round "02"]
[TimeControl "180+1"]
[Date "2022.01.04"]
[WhiteClock "0:00:02"]
[BlackClock "0:00:21"]

1. e4 {[%clk 0:03:00]}  e5 {[%clk 0:02:59]} 2. Nf3 {[%clk 0:03:00]}  Nc6 {[%clk 0:02:57]} 3. Bb5 {[%clk 0:03:00]}  Bc5 {[%clk 0:02:57]} 4. O-O {[%clk 0:02:59]}  Nd4 {[%clk 0:02:57]} 5. Ba4 {[%clk 0:02:56]}  Nxf3+ {[%clk 0:02:54]} 6. Qxf3 {[%clk 0:02:57]}  Nf6 {[%clk 0:02:54]} 7. d3 {[%clk 0:02:57]}  c6 {[%clk 0:02:54]} 8. c3 {[%clk 0:02:53]}  O-O {[%clk 0:02:51]} 9. Bg5 {[%clk 0:02:52]}  Be7 {[%clk 0:02:51]} 10. Bh4 {[%clk 0:02:49]}  d6 {[%clk 0:02:46]} 11. h3 {[%clk 0:02:49]}  a5 {[%clk 0:02:42]} 12. Bg3 {[%clk 0:02:44]}  b5 {[%clk 0:02:39]} 13. Bc2 {[%clk 0:02:44]}  a4 {[%clk 0:02:39]} 14. d4 {[%clk 0:02:40]}  Nd7 {[%clk 0:02:38]} 15. a3 {[%clk 0:02:37]}  Bf6 {[%clk 0:02:36]} 16. Rd1 {[%clk 0:02:37]}  Qe7 {[%clk 0:02:36]} 17. Qd3 {[%clk 0:02:30]}  Ba6 {[%clk 0:02:31]} 18. dxe5 {[%clk 0:02:25]}  Bxe5 {[%clk 0:02:30]} 19. Bxe5 {[%clk 0:02:25]}  Nxe5 {[%clk 0:02:30]} 20. Qxd6 {[%clk 0:02:25]}  Qxd6 {[%clk 0:02:30]} 21. Rxd6 {[%clk 0:02:24]}  Rad8 {[%clk 0:02:30]} 22. Rd4 {[%clk 0:02:10]}  c5 {[%clk 0:02:30]} 23. Rd5 {[%clk 0:02:08]}  Rxd5 {[%clk 0:02:30]} 24. exd5 {[%clk 0:02:07]}  Rd8 {[%clk 0:02:30]} 25. b3 {[%clk 0:01:50]}  axb3 {[%clk 0:02:20]} 26. Bxb3 {[%clk 0:01:51]}  c4 {[%clk 0:02:20]} 27. Bc2 {[%clk 0:01:51]}  Rxd5 {[%clk 0:02:20]} 28. a4 {[%clk 0:01:51]}  g6 {[%clk 0:02:12]} 29. axb5 {[%clk 0:01:33]}  Bxb5 {[%clk 0:02:12]} 30. Ra5 {[%clk 0:01:27]}  Nc6 {[%clk 0:02:08]} 31. Ra8+ {[%clk 0:01:23]}  Kg7 {[%clk 0:02:04]} 32. Na3 {[%clk 0:01:23]}  Ne5 {[%clk 0:02:00]} 33. f4 {[%clk 0:01:13]}  Nd3 {[%clk 0:01:57]} 34. Ra5 {[%clk 0:01:00]}  Bc6 {[%clk 0:01:53]} 35. Rxd5 {[%clk 0:00:42]}  Bxd5 {[%clk 0:01:51]} 36. g3 {[%clk 0:00:43]}  Nc5 {[%clk 0:01:43]} 37. Kf2 {[%clk 0:00:40]}  f5 {[%clk 0:01:27]} 38. Ke3 {[%clk 0:00:39]}  Ne6 {[%clk 0:01:27]} 39. Bd1 {[%clk 0:00:38]}  g5 {[%clk 0:01:15]} 40. Be2 {[%clk 0:00:37]}  gxf4+ {[%clk 0:01:15]} 41. gxf4 {[%clk 0:00:37]}  Nc7 {[%clk 0:01:05]} 42. Nxc4 {[%clk 0:00:32]}  Bg2 {[%clk 0:01:02]} 43. h4 {[%clk 0:00:30]}  Nd5+ {[%clk 0:01:02]} 44. Kf2 {[%clk 0:00:20]}  Be4 {[%clk 0:01:03]} 45. Nd6 {[%clk 0:00:18]}  Nxc3 {[%clk 0:01:02]} 46. Nxe4 {[%clk 0:00:16]}  Nxe4+ {[%clk 0:01:02]} 47. Ke3 {[%clk 0:00:15]}  Kf6 {[%clk 0:01:02]} 48. Bf3 {[%clk 0:00:15]}  Nd6 {[%clk 0:01:02]} 49. Kd4 {[%clk 0:00:14]}  Nf7 {[%clk 0:01:01]} 50. Ke3 {[%clk 0:00:13]}  h6 {[%clk 0:01:01]} 51. Kd4 {[%clk 0:00:13]}  Nd8 {[%clk 0:01:02]} 52. Bd5 {[%clk 0:00:10]}  h5 {[%clk 0:00:47]} 53. Kc5 {[%clk 0:00:10]}  Ke7 {[%clk 0:00:47]} 54. Kc4 {[%clk 0:00:08]}  Kd7 {[%clk 0:00:36]} 55. Kd4 {[%clk 0:00:05]}  Kd6 {[%clk 0:00:35]} 56. Bb3 {[%clk 0:00:03]}  Nc6+ {[%clk 0:00:34]} 57. Ke3 {[%clk 0:00:03]}  Ne7 {[%clk 0:00:33]} 58. Bf7 {[%clk 0:00:03]}  Nd5+ {[%clk 0:00:30]} 59. Kf3 {[%clk 0:00:03]}  Nf6 {[%clk 0:00:30]} 60. Bb3 {[%clk 0:00:03]}  Kc5 {[%clk 0:00:30]} 61. Be6 {[%clk 0:00:02]}  Kd6 {[%clk 0:00:25]} 62. Bxf5 {[%clk 0:00:02]}  Ke7 {[%clk 0:00:24]} 63. Bc2 {[%clk 0:00:03]}  Nd5 {[%clk 0:00:23]} 64. Bd1 {[%clk 0:00:03]}  Kf6 {[%clk 0:00:22]} 65. Kg3 {[%clk 0:00:01]}  Nxf4 {[%clk 0:00:20]} 66. Kxf4 {[%clk 0:00:02]}  Kg6 {[%clk 0:00:20]} 67. Bxh5+ {[%clk 0:00:03]}  Kxh5 {[%clk 0:00:20]} 68. Kg3 {[%clk 0:00:03]}  Kh6 {[%clk 0:00:21]} 69. Kg4 {[%clk 0:00:02]}  Kh7 {[%clk 0:00:21]} 1/2-1/2


[Site "https://www.chess.com"]

[Event "Titled Tuesday Blitz January 04 2022"]
[White "Plazuelo Pascual, Juan"]
[Black "Ibarra Jerez, Jose Carlos"]
[WhiteFideId "32059566"]
[BlackFideId "2226332"]
[WhiteElo "2364"]
[BlackElo "2626"]
[Result "0-1"]
[Round "02"]
[TimeControl "180+1"]
[Date "2022.01.04"]
[WhiteClock "0:00:06"]
[BlackClock "0:00:28"]

1. d4 {[%clk 0:03:00]}  Nf6 {[%clk 0:02:57]} 2. Bg5 {[%clk 0:02:56]}  d5 {[%clk 0:02:52]} 3. Bxf6 {[%clk 0:02:56]}  gxf6 {[%clk 0:02:51]} 4. e3 {[%clk 0:02:48]}  c5 {[%clk 0:02:49]} 5. dxc5 {[%clk 0:02:47]}  e6 {[%clk 0:02:48]} 6. Nf3 {[%clk 0:02:45]}  Bxc5 {[%clk 0:02:48]} 7. Be2 {[%clk 0:02:46]}  Qb6 {[%clk 0:02:37]} 8. Qc1 {[%clk 0:02:34]}  Nc6 {[%clk 0:02:34]} 9. O-O {[%clk 0:02:33]}  Bd7 {[%clk 0:02:28]} 10. Nc3 {[%clk 0:02:24]}  Ne5 {[%clk 0:02:24]} 11. a4 {[%clk 0:02:13]}  a6 {[%clk 0:02:12]} 12. a5 {[%clk 0:02:07]}  Qc7 {[%clk 0:02:12]} 13. Na4 {[%clk 0:01:40]}  Qxa5 {[%clk 0:02:01]} 14. Nxc5 {[%clk 0:01:25]}  Qxc5 {[%clk 0:02:02]} 15. Qd2 {[%clk 0:01:25]}  Rc8 {[%clk 0:01:59]} 16. c3 {[%clk 0:01:24]}  O-O {[%clk 0:01:56]} 17. e4 {[%clk 0:01:17]}  Nxf3+ {[%clk 0:01:31]} 18. Bxf3 {[%clk 0:01:16]}  dxe4 {[%clk 0:01:29]} 19. Qxd7 {[%clk 0:00:45]}  exf3 {[%clk 0:01:27]} 20. Qxb7 {[%clk 0:00:46]}  fxg2 {[%clk 0:01:23]} 21. Qxg2+ {[%clk 0:00:46]}  Kh8 {[%clk 0:01:23]} 22. Kh1 {[%clk 0:00:46]}  Qf5 {[%clk 0:01:16]} 23. f4 {[%clk 0:00:17]}  Rg8 {[%clk 0:01:14]} 24. Qf3 {[%clk 0:00:15]}  Rcd8 {[%clk 0:00:58]} 25. Rg1 {[%clk 0:00:15]}  Rg6 {[%clk 0:00:51]} 26. Rxg6 {[%clk 0:00:13]}  hxg6 {[%clk 0:00:51]} 27. Rd1 {[%clk 0:00:08]}  Rxd1+ {[%clk 0:00:45]} 28. Qxd1 {[%clk 0:00:08]}  Qxf4 {[%clk 0:00:44]} 29. Qa1 {[%clk 0:00:05]}  Qf3+ {[%clk 0:00:39]} 30. Kg1 {[%clk 0:00:06]}  Qe3+ {[%clk 0:00:39]} 31. Kg2 {[%clk 0:00:06]}  Qd2+ {[%clk 0:00:37]} 32. Kg1 {[%clk 0:00:06]}  Kg7 {[%clk 0:00:33]} 33. Qa3 {[%clk 0:00:06]}  e5 {[%clk 0:00:30]} 34. c4 {[%clk 0:00:06]}  e4 {[%clk 0:00:28]} 0-1


[Site "https://www.chess.com"]

[Event "Titled Tuesday Blitz January 04 2022"]
[White "Primbetov, Kazbek"]
[Black "Djordjevic, Vuk"]
[WhiteFideId "13702297"]
[BlackFideId "902098"]
[WhiteElo "2184"]
[BlackElo "2463"]
[Result "1-0"]
[Round "02"]
[TimeControl "180+1"]
[Date "2022.01.04"]
[WhiteClock "0:00:06"]
[BlackClock "0:00:01"]

1. e4 {[%clk 0:03:00]}  e6 {[%clk 0:03:00]} 2. d4 {[%clk 0:02:59]}  d5 {[%clk 0:03:00]} 3. Nc3 {[%clk 0:03:00]}  Bb4 {[%clk 0:03:00]} 4. a3 {[%clk 0:02:59]}  Bxc3+ {[%clk 0:03:00]} 5. bxc3 {[%clk 0:03:00]}  dxe4 {[%clk 0:03:01]} 6. Qg4 {[%clk 0:03:01]}  Nf6 {[%clk 0:03:01]} 7. Qxg7 {[%clk 0:03:02]}  Rg8 {[%clk 0:03:02]} 8. Qh6 {[%clk 0:03:03]}  c5 {[%clk 0:03:02]} 9. Bb2 {[%clk 0:03:01]}  Nbd7 {[%clk 0:03:01]} 10. O-O-O {[%clk 0:02:57]}  Ng4 {[%clk 0:02:53]} 11. Qd2 {[%clk 0:02:56]}  Qg5 {[%clk 0:02:28]} 12. Qxg5 {[%clk 0:02:38]}  Rxg5 {[%clk 0:02:29]} 13. Nh3 {[%clk 0:02:39]}  Rf5 {[%clk 0:02:16]} 14. Rd2 {[%clk 0:01:50]}  b6 {[%clk 0:02:17]} 15. Bb5 {[%clk 0:01:45]}  cxd4 {[%clk 0:02:07]} 16. Bc6 {[%clk 0:01:44]}  dxc3 {[%clk 0:01:34]} 17. Bxc3 {[%clk 0:01:39]}  Rc5 {[%clk 0:01:34]} 18. Bxa8 {[%clk 0:01:36]}  Rxc3 {[%clk 0:01:33]} 19. Bxe4 {[%clk 0:01:29]}  Rxa3 {[%clk 0:01:30]} 20. Kb2 {[%clk 0:01:29]}  Ra4 {[%clk 0:01:10]} 21. Bc6 {[%clk 0:01:27]}  Rc4 {[%clk 0:01:09]} 22. Bxd7+ {[%clk 0:01:22]}  Bxd7 {[%clk 0:01:09]} 23. Rhd1 {[%clk 0:01:18]}  Nf6 {[%clk 0:01:07]} 24. Rd4 {[%clk 0:01:11]}  Rc5 {[%clk 0:00:57]} 25. f4 {[%clk 0:01:01]}  Bc6 {[%clk 0:00:42]} 26. g3 {[%clk 0:00:53]}  Nd5 {[%clk 0:00:36]} 27. Re1 {[%clk 0:00:32]}  Ne7 {[%clk 0:00:22]} 28. Ng5 {[%clk 0:00:30]}  h6 {[%clk 0:00:21]} 29. Ne4 {[%clk 0:00:30]}  Bxe4 {[%clk 0:00:15]} 30. Rexe4 {[%clk 0:00:27]}  Nf5 {[%clk 0:00:15]} 31. Ra4 {[%clk 0:00:26]}  a5 {[%clk 0:00:08]} 32. c4 {[%clk 0:00:24]}  Nd6 {[%clk 0:00:08]} 33. Rd4 {[%clk 0:00:24]}  Ke7 {[%clk 0:00:08]} 34. g4 {[%clk 0:00:19]}  h5 {[%clk 0:00:07]} 35. h3 {[%clk 0:00:19]}  hxg4 {[%clk 0:00:07]} 36. hxg4 {[%clk 0:00:20]}  Rc8 {[%clk 0:00:07]} 37. Kb3 {[%clk 0:00:12]}  Nb7 {[%clk 0:00:07]} 38. Ra2 {[%clk 0:00:07]}  Nc5+ {[%clk 0:00:07]} 39. Kc3 {[%clk 0:00:07]}  Rh8 {[%clk 0:00:06]} 40. Rb2 {[%clk 0:00:07]}  Rh3+ {[%clk 0:00:06]} 41. Kc2 {[%clk 0:00:07]}  Na4 {[%clk 0:00:05]} 42. Rb3 {[%clk 0:00:06]}  Rh2+ {[%clk 0:00:05]} 43. Rd2 {[%clk 0:00:06]}  Rh4 {[%clk 0:00:06]} 44. Rg2 {[%clk 0:00:05]}  Kd6 {[%clk 0:00:05]} 45. Rb5 {[%clk 0:00:04]}  Kc6 {[%clk 0:00:04]} 46. Rh5 {[%clk 0:00:04]}  Rxh5 {[%clk 0:00:01]} 47. gxh5 {[%clk 0:00:05]}  Nc5 {[%clk 0:00:01]} 48. h6 {[%clk 0:00:06]} 1-0


[Site "https://www.chess.com"]